[Event "Titled Tuesday Blitz February 01 A 2022"]
[White "Andreikin, Dmitry"]
[Black "Bellissimo, Joseph F."]
[WhiteFideId "4158814"]
[BlackFideId "2609843"]
[WhiteElo "2736"]
[BlackElo "2061"]
[Result "1-0"]
[Round "01"]
[TimeControl "180+1"]
[Date "2022.02.01"]
[WhiteClock "0:01:39"]
[BlackClock "0:00:17"]

1. d4 {[%clk 0:02:59]}  Nf6 {[%clk 0:02:59]} 2. c4 {[%clk 0:02:59]}  e6 {[%clk 0:02:59]} 3. Nc3 {[%clk 0:02:57]}  Bb4 {[%clk 0:02:59]} 4. a3 {[%clk 0:02:57]}  Bxc3+ {[%clk 0:02:52]} 5. bxc3 {[%clk 0:02:58]}  d5 {[%clk 0:02:52]} 6. cxd5 {[%clk 0:02:55]}  exd5 {[%clk 0:02:53]} 7. e3 {[%clk 0:02:54]}  O-O {[%clk 0:02:49]} 8. Bd3 {[%clk 0:02:54]}  c6 {[%clk 0:02:45]} 9. Ne2 {[%clk 0:02:53]}  Re8 {[%clk 0:02:44]} 10. O-O {[%clk 0:02:49]}  Na6 {[%clk 0:02:40]} 11. Ng3 {[%clk 0:02:48]}  Nc7 {[%clk 0:02:39]} 12. f3 {[%clk 0:02:48]}  c5 {[%clk 0:02:36]} 13. Kh1 {[%clk 0:02:46]}  Ne6 {[%clk 0:02:34]} 14. Ra2 {[%clk 0:02:40]}  b6 {[%clk 0:02:16]} 15. Nf5 {[%clk 0:02:39]}  Bb7 {[%clk 0:02:01]} 16. g4 {[%clk 0:02:36]}  Rc8 {[%clk 0:01:57]} 17. Rg2 {[%clk 0:02:33]}  Qc7 {[%clk 0:01:31]} 18. Bd2 {[%clk 0:02:20]}  Nd7 {[%clk 0:01:09]} 19. Be1 {[%clk 0:02:19]}  cxd4 {[%clk 0:01:08]} 20. cxd4 {[%clk 0:02:18]}  Qc1 {[%clk 0:01:02]} 21. Bg3 {[%clk 0:02:10]}  Qxd1 {[%clk 0:00:55]} 22. Rxd1 {[%clk 0:02:11]}  Rc3 {[%clk 0:00:49]} 23. Nd6 {[%clk 0:02:10]}  Rb8 {[%clk 0:00:48]} 24. Nb5 {[%clk 0:02:07]}  Rb3 {[%clk 0:00:48]} 25. Bxb8 {[%clk 0:02:05]}  Nxb8 {[%clk 0:00:49]} 26. Nxa7 {[%clk 0:02:04]}  Rxa3 {[%clk 0:00:47]} 27. Nb5 {[%clk 0:02:04]}  Rb3 {[%clk 0:00:48]} 28. Nd6 {[%clk 0:02:01]}  Bc6 {[%clk 0:00:47]} 29. Ra2 {[%clk 0:01:54]}  g6 {[%clk 0:00:46]} 30. Kg2 {[%clk 0:01:54]}  Nd7 {[%clk 0:00:43]} 31. Kf2 {[%clk 0:01:53]}  Ng5 {[%clk 0:00:42]} 32. Ke2 {[%clk 0:01:51]}  Nf6 {[%clk 0:00:39]} 33. h4 {[%clk 0:01:44]}  Ne6 {[%clk 0:00:39]} 34. Kd2 {[%clk 0:01:42]}  Ne4+ {[%clk 0:00:21]} 35. fxe4 {[%clk 0:01:40]}  dxe4 {[%clk 0:00:22]} 36. Bc4 {[%clk 0:01:40]}  Rb4 {[%clk 0:00:21]} 37. Kc3 {[%clk 0:01:39]}  Rxc4+ {[%clk 0:00:21]} 38. Kxc4 {[%clk 0:01:40]}  Nc7 {[%clk 0:00:21]} 39. d5 {[%clk 0:01:40]}  Bxd5+ {[%clk 0:00:22]} 40. Rxd5 {[%clk 0:01:40]}  Nxd5 {[%clk 0:00:23]} 41. Kxd5 {[%clk 0:01:40]}  b5 {[%clk 0:00:23]} 42. g5 {[%clk 0:01:39]}  h6 {[%clk 0:00:17]} 43. Ra8+ {[%clk 0:01:38]}  Kg7 {[%clk 0:00:17]} 44. Ne8+ {[%clk 0:01:38]}  Kf8 {[%clk 0:00:17]} 45. Nf6+ {[%clk 0:01:39]} 1-0


[Site "https://www.chess.com"]

[Event "Titled Tuesday Blitz February 01 A 2022"]
[White "Barp, Alberto"]
[Black "Hansen, Eric"]
[WhiteFideId "872555"]
[BlackFideId "2606771"]
[WhiteElo "2229"]
[BlackElo "2568"]
[Result "0-1"]
[Round "01"]
[TimeControl "180+1"]
[Date "2022.02.01"]
[WhiteClock "0:00:12"]
[BlackClock "0:00:59"]

1. d4 {[%clk 0:02:54]}  Nf6 {[%clk 0:02:59]} 2. c4 {[%clk 0:02:52]}  e6 {[%clk 0:02:59]} 3. Nf3 {[%clk 0:02:49]}  b6 {[%clk 0:02:58]} 4. g3 {[%clk 0:02:49]}  Ba6 {[%clk 0:02:56]} 5. b3 {[%clk 0:02:47]}  Bb4+ {[%clk 0:02:56]} 6. Bd2 {[%clk 0:02:44]}  Be7 {[%clk 0:02:56]} 7. Bg2 {[%clk 0:02:39]}  O-O {[%clk 0:02:56]} 8. O-O {[%clk 0:02:34]}  c6 {[%clk 0:02:56]} 9. Qc2 {[%clk 0:02:32]}  d5 {[%clk 0:02:56]} 10. Rd1 {[%clk 0:02:33]}  Nbd7 {[%clk 0:02:55]} 11. Bc1 {[%clk 0:02:33]}  Ne4 {[%clk 0:02:51]} 12. Bb2 {[%clk 0:02:31]}  Rc8 {[%clk 0:02:51]} 13. Nc3 {[%clk 0:02:29]}  f5 {[%clk 0:02:51]} 14. e3 {[%clk 0:02:26]}  Bd6 {[%clk 0:02:46]} 15. a4 {[%clk 0:02:22]}  Qf6 {[%clk 0:02:34]} 16. a5 {[%clk 0:02:05]}  b5 {[%clk 0:02:34]} 17. c5 {[%clk 0:02:04]}  Bc7 {[%clk 0:02:35]} 18. Na2 {[%clk 0:01:57]}  Bb7 {[%clk 0:02:05]} 19. a6 {[%clk 0:01:56]}  Ba8 {[%clk 0:01:52]} 20. Nb4 {[%clk 0:01:56]}  e5 {[%clk 0:01:48]} 21. Nd3 {[%clk 0:01:48]}  exd4 {[%clk 0:01:48]} 22. Bxd4 {[%clk 0:01:48]}  Qh6 {[%clk 0:01:48]} 23. b4 {[%clk 0:01:43]}  Rce8 {[%clk 0:01:47]} 24. Qb2 {[%clk 0:01:41]}  g5 {[%clk 0:01:40]} 25. Re1 {[%clk 0:01:29]}  Ndf6 {[%clk 0:01:35]} 26. Be5 {[%clk 0:01:26]}  Bd8 {[%clk 0:01:35]} 27. Rac1 {[%clk 0:01:15]}  Ng4 {[%clk 0:01:34]} 28. Bd4 {[%clk 0:01:11]}  Bc7 {[%clk 0:01:30]} 29. h3 {[%clk 0:01:06]}  Ngf6 {[%clk 0:01:19]} 30. Be5 {[%clk 0:01:06]}  Bd8 {[%clk 0:01:19]} 31. Nd4 {[%clk 0:01:03]}  Nd7 {[%clk 0:01:16]} 32. Nf3 {[%clk 0:00:39]}  Nxe5 {[%clk 0:01:13]} 33. Nfxe5 {[%clk 0:00:36]}  Bf6 {[%clk 0:01:14]} 34. f4 {[%clk 0:00:30]}  Nxg3 {[%clk 0:01:12]} 35. Qc2 {[%clk 0:00:24]}  gxf4 {[%clk 0:01:07]} 36. exf4 {[%clk 0:00:24]}  Ne4 {[%clk 0:01:06]} 37. Re3 {[%clk 0:00:22]}  Bxe5 {[%clk 0:01:05]} 38. Nxe5 {[%clk 0:00:18]}  Rxe5 {[%clk 0:01:03]} 39. Qb2 {[%clk 0:00:12]}  Re6 {[%clk 0:00:59]} 0-1


[Site "https://www.chess.com"]

[Event "Titled Tuesday Blitz February 01 A 2022"]
[White "Cunjalo, Faris"]
[Black "Hamley, Ryan"]
[WhiteFideId "14410710"]
[BlackFideId "30959497"]
[WhiteElo "2263"]
[BlackElo "2500"]
[Result "1-0"]
[Round "01"]
[TimeControl "180+1"]
[Date "2022.02.01"]
[WhiteClock "0:02:13"]
[BlackClock "0:02:18"]

1. d4 {[%clk 0:02:57]}  Nf6 {[%clk 0:02:54]} 2. c4 {[%clk 0:02:58]}  g6 {[%clk 0:02:54]} 3. Nc3 {[%clk 0:02:57]}  Bg7 {[%clk 0:02:54]} 4. e4 {[%clk 0:02:57]}  d6 {[%clk 0:02:55]} 5. Be2 {[%clk 0:02:58]}  O-O {[%clk 0:02:56]} 6. Bg5 {[%clk 0:02:59]}  Nbd7 {[%clk 0:02:54]} 7. Nf3 {[%clk 0:02:58]}  h6 {[%clk 0:02:52]} 8. Be3 {[%clk 0:02:57]}  e5 {[%clk 0:02:52]} 9. d5 {[%clk 0:02:58]}  Ng4 {[%clk 0:02:47]} 10. Bd2 {[%clk 0:02:58]}  f5 {[%clk 0:02:48]} 11. h3 {[%clk 0:02:54]}  Ngf6 {[%clk 0:02:44]} 12. exf5 {[%clk 0:02:43]}  gxf5 {[%clk 0:02:45]} 13. Qc2 {[%clk 0:02:43]}  Nc5 {[%clk 0:02:41]} 14. O-O-O {[%clk 0:02:37]}  a5 {[%clk 0:02:39]} 15. Be3 {[%clk 0:02:34]}  b6 {[%clk 0:02:36]} 16. Rhg1 {[%clk 0:02:30]}  Qe8 {[%clk 0:02:26]} 17. Nh4 {[%clk 0:02:13]}  Qe6 {[%clk 0:02:18]} 18. dxe6 {[%clk 0:02:13]} 1-0


[Site "https://www.chess.com"]

[Event "Titled Tuesday Blitz February 01 A 2022"]
[White "Grischuk, Alexander"]
[Black "Swicarz, Maciej"]
[WhiteFideId "4126025"]
[BlackFideId "1113585"]
[WhiteElo "2762"]
[BlackElo "2063"]
[Result "1-0"]
[Round "01"]
[TimeControl "180+1"]
[Date "2022.02.01"]
[WhiteClock "0:00:30"]
[BlackClock "0:00:05"]

1. e4 {[%clk 0:03:00]}  c5 {[%clk 0:02:58]} 2. Nc3 {[%clk 0:02:59]}  d6 {[%clk 0:02:57]} 3. d4 {[%clk 0:02:59]}  cxd4 {[%clk 0:02:57]} 4. Qxd4 {[%clk 0:03:00]}  Nc6 {[%clk 0:02:57]} 5. Qd2 {[%clk 0:03:01]}  g6 {[%clk 0:02:57]} 6. b3 {[%clk 0:03:01]}  Bh6 {[%clk 0:02:57]} 7. f4 {[%clk 0:03:01]}  Nf6 {[%clk 0:02:57]} 8. Bb2 {[%clk 0:03:01]}  O-O {[%clk 0:02:57]} 9. O-O-O {[%clk 0:03:01]}  e5 {[%clk 0:02:57]} 10. Nge2 {[%clk 0:03:00]}  Re8 {[%clk 0:02:55]} 11. Kb1 {[%clk 0:02:50]}  Bg4 {[%clk 0:02:52]} 12. g3 {[%clk 0:02:02]}  Nd4 {[%clk 0:02:41]} 13. Bg2 {[%clk 0:01:49]}  Rc8 {[%clk 0:02:20]} 14. Nxd4 {[%clk 0:01:48]}  exd4 {[%clk 0:02:20]} 15. Qxd4 {[%clk 0:01:48]}  Bg7 {[%clk 0:02:16]} 16. Nd5 {[%clk 0:01:34]}  Bxd1 {[%clk 0:02:13]} 17. Rxd1 {[%clk 0:01:35]}  Nh5 {[%clk 0:01:58]} 18. Qxa7 {[%clk 0:01:35]}  Bxb2 {[%clk 0:01:56]} 19. Kxb2 {[%clk 0:01:35]}  Nf6 {[%clk 0:01:47]} 20. Nc3 {[%clk 0:01:29]}  Qc7 {[%clk 0:01:43]} 21. Qd4 {[%clk 0:01:28]}  Re6 {[%clk 0:01:38]} 22. Rd3 {[%clk 0:01:10]}  Ng4 {[%clk 0:00:44]} 23. h3 {[%clk 0:01:04]}  Nf6 {[%clk 0:00:43]} 24. h4 {[%clk 0:01:03]}  Ng4 {[%clk 0:00:42]} 25. Bh3 {[%clk 0:01:02]}  h5 {[%clk 0:00:42]} 26. Bxg4 {[%clk 0:00:56]}  hxg4 {[%clk 0:00:43]} 27. Rd2 {[%clk 0:00:48]}  Qc6 {[%clk 0:00:41]} 28. Nd5 {[%clk 0:00:44]}  f5 {[%clk 0:00:16]} 29. h5 {[%clk 0:00:35]}  gxh5 {[%clk 0:00:07]} 30. exf5 {[%clk 0:00:31]}  Rh6 {[%clk 0:00:05]} 31. Ne7+ {[%clk 0:00:30]} 1-0


[Site "https://www.chess.com"]

[Event "Titled Tuesday Blitz February 01 A 2022"]
[White "Jobava, Baadur"]
[Black "Glavina, Pablo"]
[WhiteFideId "13601520"]
[BlackFideId "100234"]
[WhiteElo "2617"]
[BlackElo "2369"]
[Result "1-0"]
[Round "01"]
[TimeControl "180+1"]
[Date "2022.02.01"]
[WhiteClock "0:00:21"]
[BlackClock "0:00:07"]

1. b3 {[%clk 0:02:58]}  e5 {[%clk 0:02:59]} 2. Bb2 {[%clk 0:02:58]}  d6 {[%clk 0:02:56]} 3. e3 {[%clk 0:02:55]}  g6 {[%clk 0:02:55]} 4. d4 {[%clk 0:02:55]}  Bg7 {[%clk 0:02:51]} 5. dxe5 {[%clk 0:02:55]}  Nd7 {[%clk 0:02:46]} 6. Nc3 {[%clk 0:02:52]}  Nxe5 {[%clk 0:02:44]} 7. Qd2 {[%clk 0:02:51]}  Nf6 {[%clk 0:02:41]} 8. O-O-O {[%clk 0:02:51]}  a5 {[%clk 0:02:39]} 9. a4 {[%clk 0:02:50]}  O-O {[%clk 0:02:34]} 10. Kb1 {[%clk 0:02:50]}  Re8 {[%clk 0:02:30]} 11. h3 {[%clk 0:02:47]}  Bd7 {[%clk 0:02:27]} 12. Nge2 {[%clk 0:02:43]}  Bc6 {[%clk 0:02:23]} 13. Nd4 {[%clk 0:02:41]}  Qe7 {[%clk 0:02:20]} 14. Nxc6 {[%clk 0:02:37]}  Nxc6 {[%clk 0:02:19]} 15. Bb5 {[%clk 0:02:35]}  Red8 {[%clk 0:02:19]} 16. Qe2 {[%clk 0:02:23]}  Nb4 {[%clk 0:02:15]} 17. f3 {[%clk 0:02:10]}  c6 {[%clk 0:02:15]} 18. Bd3 {[%clk 0:02:10]}  d5 {[%clk 0:02:14]} 19. Rhe1 {[%clk 0:02:05]}  Re8 {[%clk 0:02:01]} 20. Qf1 {[%clk 0:01:54]}  Qc5 {[%clk 0:01:58]} 21. e4 {[%clk 0:01:48]}  dxe4 {[%clk 0:01:49]} 22. fxe4 {[%clk 0:01:43]}  Nxd3 {[%clk 0:01:45]} 23. Rxd3 {[%clk 0:01:42]}  Re6 {[%clk 0:01:40]} 24. Rf3 {[%clk 0:01:42]}  Qe7 {[%clk 0:01:35]} 25. e5 {[%clk 0:01:39]}  Nd7 {[%clk 0:01:31]} 26. Ne4 {[%clk 0:01:33]}  Bxe5 {[%clk 0:01:22]} 27. Bc1 {[%clk 0:01:25]}  Re8 {[%clk 0:01:14]} 28. Ng5 {[%clk 0:01:08]}  Rf6 {[%clk 0:01:13]} 29. Bb2 {[%clk 0:01:04]}  Rxf3 {[%clk 0:01:06]} 30. Nxf3 {[%clk 0:01:05]}  f6 {[%clk 0:01:05]} 31. Qd3 {[%clk 0:01:01]}  Kg7 {[%clk 0:01:03]} 32. Nxe5 {[%clk 0:00:59]}  Nxe5 {[%clk 0:01:02]} 33. Qc3 {[%clk 0:00:59]}  Qb4 {[%clk 0:01:00]} 34. Qg3 {[%clk 0:00:59]}  Qc5 {[%clk 0:00:53]} 35. Rd1 {[%clk 0:00:57]}  Re7 {[%clk 0:00:52]} 36. Qf4 {[%clk 0:00:55]}  h5 {[%clk 0:00:46]} 37. Rf1 {[%clk 0:00:55]}  Qd6 {[%clk 0:00:45]} 38. Ka2 {[%clk 0:00:51]}  Qe6 {[%clk 0:00:42]} 39. Qd2 {[%clk 0:00:49]}  Qd5 {[%clk 0:00:41]} 40. Qf2 {[%clk 0:00:48]}  Re6 {[%clk 0:00:40]} 41. Bc3 {[%clk 0:00:44]}  Nd7 {[%clk 0:00:38]} 42. Kb2 {[%clk 0:00:44]}  Qg5 {[%clk 0:00:34]} 43. Rd1 {[%clk 0:00:42]}  Ne5 {[%clk 0:00:34]} 44. Rd2 {[%clk 0:00:41]}  Qf5 {[%clk 0:00:34]} 45. Qb6 {[%clk 0:00:41]}  Re7 {[%clk 0:00:30]} 46. Qxa5 {[%clk 0:00:41]}  Rd7 {[%clk 0:00:30]} 47. Rxd7+ {[%clk 0:00:38]}  Nxd7 {[%clk 0:00:28]} 48. Qc7 {[%clk 0:00:38]}  Kh6 {[%clk 0:00:27]} 49. Qxb7 {[%clk 0:00:38]}  Qd5 {[%clk 0:00:27]} 50. Qc7 {[%clk 0:00:35]}  g5 {[%clk 0:00:20]} 51. a5 {[%clk 0:00:32]}  Kg6 {[%clk 0:00:17]} 52. Qd8 {[%clk 0:00:28]}  Qe6 {[%clk 0:00:15]} 53. a6 {[%clk 0:00:25]}  c5 {[%clk 0:00:09]} 54. a7 {[%clk 0:00:23]}  Nb6 {[%clk 0:00:10]} 55. Qxb6 {[%clk 0:00:19]}  Qxb6 {[%clk 0:00:09]} 56. a8=Q {[%clk 0:00:19]}  c4 {[%clk 0:00:09]} 57. Qe4+ {[%clk 0:00:19]}  Kh6 {[%clk 0:00:08]} 58. Qxc4 {[%clk 0:00:20]}  Qd6 {[%clk 0:00:08]} 59. Qd4 {[%clk 0:00:20]}  Qxd4 {[%clk 0:00:07]} 60. Bxd4 {[%clk 0:00:21]} 1-0


[Site "https://www.chess.com"]

[Event "Titled Tuesday Blitz February 01 A 2022"]
[White "Jones, Gawain C B"]
[Black "Vetokhin, Ilia"]
[WhiteFideId "409561"]
[BlackFideId "24156078"]
[WhiteElo "2657"]
[BlackElo "1897"]
[Result "1-0"]
[Round "01"]
[TimeControl "180+1"]
[Date "2022.02.01"]
[WhiteClock "0:00:55"]
[BlackClock "0:00:08"]

1. Nf3 {[%clk 0:03:00]}  Nf6 {[%clk 0:02:57]} 2. g3 {[%clk 0:03:00]}  e6 {[%clk 0:02:57]} 3. Bg2 {[%clk 0:03:01]}  Be7 {[%clk 0:02:57]} 4. O-O {[%clk 0:03:01]}  O-O {[%clk 0:02:57]} 5. d3 {[%clk 0:03:01]}  d5 {[%clk 0:02:40]} 6. Nbd2 {[%clk 0:03:01]}  b6 {[%clk 0:02:21]} 7. e4 {[%clk 0:03:01]}  dxe4 {[%clk 0:02:19]} 8. dxe4 {[%clk 0:02:59]}  Bb7 {[%clk 0:02:20]} 9. e5 {[%clk 0:02:54]}  Nfd7 {[%clk 0:02:15]} 10. Qe2 {[%clk 0:02:53]}  c5 {[%clk 0:02:09]} 11. Ne4 {[%clk 0:02:49]}  Qc7 {[%clk 0:02:01]} 12. Bf4 {[%clk 0:02:46]}  Nc6 {[%clk 0:01:56]} 13. Nd6 {[%clk 0:02:25]}  Nd4 {[%clk 0:01:03]} 14. Nxd4 {[%clk 0:02:18]}  Bxg2 {[%clk 0:01:03]} 15. N4f5 {[%clk 0:01:36]}  exf5 {[%clk 0:00:56]} 16. Kxg2 {[%clk 0:01:36]}  Qc6+ {[%clk 0:00:46]} 17. Qf3 {[%clk 0:01:34]}  Qxf3+ {[%clk 0:00:44]} 18. Kxf3 {[%clk 0:01:35]}  Rfd8 {[%clk 0:00:36]} 19. Nxf5 {[%clk 0:01:34]}  Bf8 {[%clk 0:00:34]} 20. Rfd1 {[%clk 0:01:31]}  g6 {[%clk 0:00:30]} 21. Nd6 {[%clk 0:01:26]}  Bxd6 {[%clk 0:00:23]} 22. Rxd6 {[%clk 0:01:25]}  Nf8 {[%clk 0:00:23]} 23. Bg5 {[%clk 0:01:20]}  Rxd6 {[%clk 0:00:22]} 24. exd6 {[%clk 0:01:20]}  Nd7 {[%clk 0:00:14]} 25. Re1 {[%clk 0:01:18]}  f6 {[%clk 0:00:14]} 26. Re7 {[%clk 0:01:13]}  Rd8 {[%clk 0:00:14]} 27. Bh6 {[%clk 0:01:08]}  Ne5+ {[%clk 0:00:13]} 28. Ke4 {[%clk 0:01:04]}  Nf7 {[%clk 0:00:13]} 29. d7 {[%clk 0:01:03]}  Nxh6 {[%clk 0:00:05]} 30. Re8+ {[%clk 0:01:03]}  Kf7 {[%clk 0:00:05]} 31. Rxd8 {[%clk 0:01:03]}  Ke7 {[%clk 0:00:06]} 32. Ra8 {[%clk 0:01:02]}  Kxd7 {[%clk 0:00:06]} 33. Rxa7+ {[%clk 0:01:02]}  Kc6 {[%clk 0:00:07]} 34. Rxh7 {[%clk 0:01:02]}  Nf5 {[%clk 0:00:07]} 35. g4 {[%clk 0:01:01]}  Nd6+ {[%clk 0:00:08]} 36. Kd3 {[%clk 0:00:55]}  Nc4 {[%clk 0:00:08]} 37. Kxc4 {[%clk 0:00:55]} 1-0


[Site "https://www.chess.com"]

[Event "Titled Tuesday Blitz February 01 A 2022"]
[White "Kantans, Toms"]
[Black "Deac, Bogdan-Daniel"]
[WhiteFideId "11602945"]
[BlackFideId "1226380"]
[WhiteElo "2357"]
[BlackElo "2646"]
[Result "0-1"]
[Round "01"]
[TimeControl "180+1"]
[Date "2022.02.01"]
[WhiteClock "0:00:04"]
[BlackClock "0:00:51"]

1. e4 {[%clk 0:02:59]}  c5 {[%clk 0:02:58]} 2. Nf3 {[%clk 0:02:59]}  Nc6 {[%clk 0:02:58]} 3. Bb5 {[%clk 0:02:59]}  e6 {[%clk 0:02:57]} 4. O-O {[%clk 0:02:58]}  Nge7 {[%clk 0:02:57]} 5. Ba4 {[%clk 0:02:56]}  Ng6 {[%clk 0:02:47]} 6. Re1 {[%clk 0:02:53]}  Be7 {[%clk 0:02:46]} 7. c3 {[%clk 0:02:45]}  d5 {[%clk 0:02:45]} 8. exd5 {[%clk 0:02:38]}  Qxd5 {[%clk 0:02:44]} 9. d4 {[%clk 0:02:38]}  O-O {[%clk 0:02:36]} 10. dxc5 {[%clk 0:02:35]}  Qxc5 {[%clk 0:02:27]} 11. Be3 {[%clk 0:02:34]}  Qa5 {[%clk 0:02:28]} 12. Nbd2 {[%clk 0:02:32]}  Rd8 {[%clk 0:02:27]} 13. Qc2 {[%clk 0:02:28]}  b5 {[%clk 0:02:19]} 14. Bb3 {[%clk 0:02:27]}  Bb7 {[%clk 0:02:17]} 15. a3 {[%clk 0:02:27]}  Rac8 {[%clk 0:02:14]} 16. Rad1 {[%clk 0:02:26]}  Qc7 {[%clk 0:02:06]} 17. Ne4 {[%clk 0:02:24]}  Na5 {[%clk 0:01:58]} 18. Ba2 {[%clk 0:02:21]}  Nc4 {[%clk 0:01:56]} 19. Bc1 {[%clk 0:02:15]}  Rxd1 {[%clk 0:01:28]} 20. Rxd1 {[%clk 0:02:16]}  Rd8 {[%clk 0:01:28]} 21. Rxd8+ {[%clk 0:02:06]}  Qxd8 {[%clk 0:01:27]} 22. Qe2 {[%clk 0:01:28]}  Qc7 {[%clk 0:01:15]} 23. g3 {[%clk 0:01:19]}  Qc6 {[%clk 0:01:08]} 24. Bb1 {[%clk 0:01:16]}  f5 {[%clk 0:01:01]} 25. Neg5 {[%clk 0:00:08]}  Bxg5 {[%clk 0:00:56]} 26. Bxg5 {[%clk 0:00:09]}  h6 {[%clk 0:00:54]} 27. b3 {[%clk 0:00:04]}  Nce5 {[%clk 0:00:51]} 0-1


[Site "https://www.chess.com"]

[Event "Titled Tuesday Blitz February 01 A 2022"]
[White "Le, Tuan Minh"]
[Black "Bilan, Danila"]
[WhiteFideId "12401153"]
[BlackFideId "24161918"]
[WhiteElo "2450"]
[BlackElo "2164"]
[Result "1-0"]
[Round "01"]
[TimeControl "180+1"]
[Date "2022.02.01"]
[WhiteClock "0:00:12"]
[BlackClock "0:00:06"]

1. d4 {[%clk 0:03:00]}  d5 {[%clk 0:02:59]} 2. Nf3 {[%clk 0:03:00]}  Nf6 {[%clk 0:02:59]} 3. Bf4 {[%clk 0:03:00]}  c5 {[%clk 0:02:56]} 4. c3 {[%clk 0:03:00]}  Qb6 {[%clk 0:02:51]} 5. Qc2 {[%clk 0:03:00]}  Nc6 {[%clk 0:02:47]} 6. e3 {[%clk 0:03:00]}  Nh5 {[%clk 0:02:44]} 7. Be5 {[%clk 0:03:00]}  Nxe5 {[%clk 0:02:40]} 8. Nxe5 {[%clk 0:03:01]}  Nf6 {[%clk 0:02:37]} 9. Nd2 {[%clk 0:02:55]}  e6 {[%clk 0:02:30]} 10. Qa4+ {[%clk 0:02:41]}  Bd7 {[%clk 0:02:25]} 11. Nxd7 {[%clk 0:02:37]}  Nxd7 {[%clk 0:02:26]} 12. Bb5 {[%clk 0:02:38]}  Rd8 {[%clk 0:02:16]} 13. Nf3 {[%clk 0:02:37]}  Bd6 {[%clk 0:02:13]} 14. dxc5 {[%clk 0:02:26]}  Qxc5 {[%clk 0:02:05]} 15. Rd1 {[%clk 0:02:18]}  a6 {[%clk 0:01:58]} 16. Bxd7+ {[%clk 0:02:16]}  Rxd7 {[%clk 0:01:58]} 17. O-O {[%clk 0:02:17]}  Qc6 {[%clk 0:01:53]} 18. Qg4 {[%clk 0:02:03]}  O-O {[%clk 0:01:50]} 19. Rd2 {[%clk 0:02:02]}  Rc8 {[%clk 0:01:41]} 20. Rfd1 {[%clk 0:02:01]}  Rcd8 {[%clk 0:01:29]} 21. g3 {[%clk 0:01:48]}  b5 {[%clk 0:01:27]} 22. a3 {[%clk 0:01:39]}  Qc4 {[%clk 0:01:21]} 23. Rd4 {[%clk 0:01:37]}  Qc7 {[%clk 0:01:16]} 24. R1d2 {[%clk 0:01:33]}  Be7 {[%clk 0:01:10]} 25. R4d3 {[%clk 0:01:32]}  Bf6 {[%clk 0:01:09]} 26. h4 {[%clk 0:01:22]}  Qc4 {[%clk 0:01:04]} 27. Qh3 {[%clk 0:01:21]}  h5 {[%clk 0:01:01]} 28. Rd1 {[%clk 0:01:07]}  g6 {[%clk 0:00:59]} 29. R3d2 {[%clk 0:01:05]}  a5 {[%clk 0:00:59]} 30. Nd4 {[%clk 0:01:01]}  Kg7 {[%clk 0:00:48]} 31. Qg2 {[%clk 0:01:00]}  b4 {[%clk 0:00:43]} 32. cxb4 {[%clk 0:00:59]}  axb4 {[%clk 0:00:42]} 33. Rc2 {[%clk 0:00:47]}  Qa6 {[%clk 0:00:27]} 34. axb4 {[%clk 0:00:47]}  Rb8 {[%clk 0:00:21]} 35. b5 {[%clk 0:00:43]}  Qa4 {[%clk 0:00:18]} 36. b3 {[%clk 0:00:43]}  Qb4 {[%clk 0:00:16]} 37. Qf3 {[%clk 0:00:27]}  Bxd4 {[%clk 0:00:15]} 38. Rxd4 {[%clk 0:00:28]}  Qxb5 {[%clk 0:00:15]} 39. Rb2 {[%clk 0:00:28]}  Rc7 {[%clk 0:00:15]} 40. Rd1 {[%clk 0:00:25]}  Qb4 {[%clk 0:00:13]} 41. Qe2 {[%clk 0:00:24]}  Qc3 {[%clk 0:00:13]} 42. Rdb1 {[%clk 0:00:21]}  Rb4 {[%clk 0:00:14]} 43. Qd1 {[%clk 0:00:19]}  Qc5 {[%clk 0:00:10]} 44. Rd2 {[%clk 0:00:19]}  Qc3 {[%clk 0:00:10]} 45. Rd3 {[%clk 0:00:19]}  Qc5 {[%clk 0:00:10]} 46. Rd4 {[%clk 0:00:19]}  Rxd4 {[%clk 0:00:09]} 47. Qxd4+ {[%clk 0:00:18]}  Kg8 {[%clk 0:00:08]} 48. Qxc5 {[%clk 0:00:17]}  Rxc5 {[%clk 0:00:08]} 49. b4 {[%clk 0:00:18]}  Rb5 {[%clk 0:00:06]} 50. Kf1 {[%clk 0:00:18]}  Kf8 {[%clk 0:00:07]} 51. Ke2 {[%clk 0:00:19]}  Ke7 {[%clk 0:00:08]} 52. Kd3 {[%clk 0:00:20]}  Kd6 {[%clk 0:00:08]} 53. e4 {[%clk 0:00:19]}  dxe4+ {[%clk 0:00:05]} 54. Kxe4 {[%clk 0:00:19]}  f5+ {[%clk 0:00:06]} 55. Kf4 {[%clk 0:00:19]}  Ke7 {[%clk 0:00:03]} 56. Kg5 {[%clk 0:00:20]}  Kf7 {[%clk 0:00:03]} 57. f4 {[%clk 0:00:18]}  e5 {[%clk 0:00:03]} 58. fxe5 {[%clk 0:00:18]}  Rxe5 {[%clk 0:00:04]} 59. b5 {[%clk 0:00:18]}  Kg7 {[%clk 0:00:04]} 60. Kf4 {[%clk 0:00:18]}  Re4+ {[%clk 0:00:05]} 61. Kf3 {[%clk 0:00:19]}  Re7 {[%clk 0:00:05]} 62. b6 {[%clk 0:00:19]}  Rb7 {[%clk 0:00:06]} 63. Kf4 {[%clk 0:00:20]}  Kf6 {[%clk 0:00:07]} 64. Rb2 {[%clk 0:00:20]}  Ke6 {[%clk 0:00:06]} 65. Kg5 {[%clk 0:00:21]}  Kf7 {[%clk 0:00:07]} 66. Rb3 {[%clk 0:00:20]}  Kg7 {[%clk 0:00:07]} 67. Rb2 {[%clk 0:00:18]}  Re7 {[%clk 0:00:06]} 68. g4 {[%clk 0:00:11]}  fxg4 {[%clk 0:00:01]} 69. b7 {[%clk 0:00:11]}  Re5+ {[%clk 0:00:02]} 70. Kf4 {[%clk 0:00:11]}  Rf5+ {[%clk 0:00:03]} 71. Ke4 {[%clk 0:00:11]}  Rf3 {[%clk 0:00:04]} 72. b8=Q {[%clk 0:00:12]}  Rf6 {[%clk 0:00:05]} 73. Qe5 {[%clk 0:00:12]}  Kh6 {[%clk 0:00:05]} 74. Qxf6 {[%clk 0:00:12]}  g3 {[%clk 0:00:06]} 75. Qh8# {[%clk 0:00:12]} 1-0


[Site "https://www.chess.com"]

[Event "Titled Tuesday Blitz February 01 A 2022"]
[White "Maidel, Anton"]
[Black "Tari, Aryan"]
[WhiteFideId "4125290"]
[BlackFideId "1510045"]
[WhiteElo "2336"]
[BlackElo "2567"]
[Result "0-1"]
[Round "01"]
[TimeControl "180+1"]
[Date "2022.02.01"]
[WhiteClock "0:00:21"]
[BlackClock "0:01:47"]

1. e4 {[%clk 0:02:59]}  c5 {[%clk 0:02:51]} 2. Nf3 {[%clk 0:02:59]}  Nc6 {[%clk 0:02:44]} 3. Bb5 {[%clk 0:02:58]}  g6 {[%clk 0:02:29]} 4. Bxc6 {[%clk 0:02:58]}  dxc6 {[%clk 0:02:29]} 5. O-O {[%clk 0:02:58]}  Bg7 {[%clk 0:02:30]} 6. Nc3 {[%clk 0:02:58]}  Nf6 {[%clk 0:02:28]} 7. h3 {[%clk 0:02:56]}  Nd7 {[%clk 0:02:28]} 8. d3 {[%clk 0:02:55]}  e5 {[%clk 0:02:28]} 9. Bg5 {[%clk 0:02:47]}  f6 {[%clk 0:02:26]} 10. Be3 {[%clk 0:02:46]}  b6 {[%clk 0:02:26]} 11. Qd2 {[%clk 0:02:46]}  Nf8 {[%clk 0:02:23]} 12. a3 {[%clk 0:02:43]}  Ne6 {[%clk 0:02:23]} 13. b4 {[%clk 0:02:42]}  O-O {[%clk 0:02:20]} 14. bxc5 {[%clk 0:02:40]}  f5 {[%clk 0:02:20]} 15. Bh6 {[%clk 0:02:35]}  fxe4 {[%clk 0:02:11]} 16. Nxe4 {[%clk 0:02:29]}  Rxf3 {[%clk 0:02:11]} 17. gxf3 {[%clk 0:02:27]}  Nd4 {[%clk 0:02:11]} 18. Qe3 {[%clk 0:00:29]}  Nf5 {[%clk 0:01:54]} 19. Bxg7 {[%clk 0:00:29]}  Nxe3 {[%clk 0:01:52]} 20. fxe3 {[%clk 0:00:30]}  Kxg7 {[%clk 0:01:52]} 21. cxb6 {[%clk 0:00:28]}  axb6 {[%clk 0:01:50]} 22. Kf2 {[%clk 0:00:28]}  Bxh3 {[%clk 0:01:49]} 23. Rh1 {[%clk 0:00:28]}  Bf5 {[%clk 0:01:50]} 24. Ng3 {[%clk 0:00:27]}  Be6 {[%clk 0:01:48]} 25. Ne4 {[%clk 0:00:27]}  Bd5 {[%clk 0:01:48]} 26. Ng3 {[%clk 0:00:24]}  Qf8 {[%clk 0:01:47]} 27. e4 {[%clk 0:00:21]}  Qc5+ {[%clk 0:01:47]} 0-1


[Site "https://www.chess.com"]